bitfinex/quotes_SOLUSD_20250421
["timestamp","ask_amount","ask_price","bid_price","bid_amount"]
[1745225077605,0.14216157,140.13,140.08,13.94]
[1745225078517,0.14216157,140.13,140.09,13.94]
[1745225083411,0.14216157,140.13,140.1,13.94]
[1745225092924,26.0,140.12,140.11,13.94]
[1745225094110,0.14216157,140.13,140.11,13.94]
[1745225105239,18.79181043,140.13,140.11,13.94]
[1745225110336,0.14216157,140.09,140.07,13.97]
[1745225110648,99.59181043,140.09,140.07,0.03]
[1745225112126,31.48059303,140.08,140.07,0.03]
[1745225115136,24.13024189,140.08,140.07,0.03]
[1745225116946,50.13024189,140.08,140.07,0.03]
[1745225120151,44.79181043,140.08,140.07,0.03]
[1745225122943,18.79181043,140.08,140.07,0.03]
[1745225124562,40.18181043,140.08,140.07,0.03]
[1745225124744,18.79181043,140.08,140.07,0.03]
[1745225127456,47.33058827,140.08,140.07,0.03]
[1745225127841,90.10058827,140.08,140.05,0.03]
[1745225128052,82.96181043,140.06,140.05,0.03]
[1745225128254,84.16934543,140.06,140.05,0.03]
[1745225128451,89.0223946,140.06,140.05,0.03]
[1745225128848,96.16219182,140.06,140.05,0.03]
[1745225131053,89.0223946,140.06,140.05,0.03]
[1745225131362,96.16219182,140.06,140.05,0.03]
[1745225132160,89.0223946,140.06,140.05,0.03]
[1745225133859,18.79181043,140.06,140.05,0.03]
[1745225134255,44.79181043,140.06,140.05,0.03]
[1745225134458,18.64964886,140.06,140.05,0.03]
[1745225134647,18.64964886,140.08,140.05,0.03]
[1745225134963,18.64964886,140.09,140.05,0.03]
[1745225135164,26.0,140.06,140.05,0.03]
[1745225135343,18.64964886,140.09,140.05,0.03]
[1745225135668,26.14216157,140.06,140.05,0.03]
[1745225141955,26.14216157,140.06,140.05,6.4231]
[1745225146963,26.14216157,140.06,140.05,0.03]
[1745225148163,44.79181043,140.06,140.05,0.03]
[1745225160274,26.0,140.06,140.05,0.03]
[1745225160478,106.8,140.08,140.05,0.03]
[1745225160674,0.14216157,140.07,140.05,0.03]
[1745225160859,106.8,140.08,140.05,0.03]
[1745225161268,0.14216157,140.07,140.05,0.03]
[1745225161578,106.8,140.08,140.05,0.03]
[1745225161874,0.14216157,140.07,140.05,0.03]
[1745225162278,44.79181043,140.06,140.05,0.03]
[1745225166081,44.79181043,140.06,140.04,0.03]
[1745225166082,18.79181043,140.05,140.04,0.03]
[1745225166274,40.19181043,140.05,140.04,0.03]
[1745225166967,26.0,140.07,140.04,0.03]
[1745225167163,0.14216157,140.06,140.04,0.03]
[1745225167981,26.14216157,140.05,140.04,0.03]
[1745225168882,0.14216157,140.05,140.04,0.03]
[1745225177275,26.14216157,140.05,140.04,0.03]
[1745225183577,26.14216157,140.05,140.04,1.536]
[1745225185884,44.79181043,140.05,140.04,0.03]
[1745225186478,87.60181043,140.05,140.04,0.03]
[1745225187880,109.00181043,140.05,140.04,0.03]
[1745225190805,116.14211746,140.05,140.04,0.03]
[1745225191008,122.20270163,140.05,140.04,0.03]
[1745225192375,115.0623946,140.05,140.04,0.03]
[1745225193990,122.20270163,140.05,140.04,0.03]
[1745225194804,122.20270163,140.05,140.01,0.03]
[1745225194805,26.0,140.02,140.01,0.03]
[1745225194985,40.19181043,140.02,140.01,0.03]
[1745225198794,83.00181043,140.01,139.96,1.536]
[1745225198998,26.14216157,139.99,139.96,1.536]
[1745225199691,18.79181043,139.99,139.96,1.536]
[1745225201118,44.79181043,139.99,139.96,1.536]
[1745225213743,44.79181043,139.99,139.96,0.03]
[1745225219229,18.79181043,139.99,139.96,0.03]
[1745225221438,83.00181043,139.99,139.96,0.03]
[1745225222037,18.79181043,139.99,139.96,0.03]
[1745225222234,18.64964886,139.99,139.96,0.03]
[1745225222534,18.64964886,139.99,139.97,1.6541]
[1745225223234,18.79181043,139.99,139.97,1.6541]
[1745225226438,18.79181043,139.99,139.97,0.03]
[1745225226825,83.00181043,139.99,139.97,0.03]
[1745225227744,90.14517781,139.99,139.97,0.03]
[1745225233445,83.00181043,139.98,139.97,0.03]
[1745225233642,44.79181043,139.95,139.93,15.5574]
[1745225233824,44.79181043,139.95,139.93,1.6174]
[1745225235444,44.64964886,139.95,139.93,1.6174]
[1745225235751,44.79181043,139.95,139.93,1.6174]
[1745225236130,18.79181043,139.95,139.93,1.6174]
[1745225236334,0.14216157,139.95,139.93,1.6174]
[1745225236545,80.8,139.97,139.93,1.6174]
[1745225236752,80.8,139.97,139.94,13.97]
[1745225236952,80.8,139.97,139.95,7.9182]
[1745225238547,18.64964886,139.99,139.95,7.9182]
[1745225238848,18.64964886,140.0,139.95,7.9182]
[1745225239056,80.8,140.01,139.96,1.6399]
[1745225239434,11.12045336,140.05,139.98,1.6399]
[1745225239631,18.79181043,140.04,139.99,13.94]
[1745225239835,11.12045336,140.05,140.01,1.6399]
[1745225240656,0.063,140.05,140.01,1.6399]
[1745225245248,0.063,140.05,140.02,6.4764]
[1745225245454,80.8,140.06,140.03,1.6469]
[1745225245654,80.8,140.06,140.04,13.94]
[1745225245939,18.71264886,140.11,140.05,6.4764]
[1745225246139,18.71264886,140.11,140.06,1.6469]
[1745225246369,0.063,140.11,140.06,1.6469]
[1745225250863,0.20516157,140.11,140.06,1.6469]
[1745225252466,0.063,140.11,140.06,1.6469]
[1745225252765,0.20516157,140.11,140.06,1.6469]
[1745225254054,0.063,140.11,140.06,1.6469]
[1745225260541,0.063,140.11,140.06,27.6469]
[1745225260744,0.063,140.11,140.08,6.1577]
[1745225260967,0.063,140.11,140.1,1.6482]
[1745225270291,0.063,140.13,140.1,1.6482]
[1745225272100,0.063,140.13,140.09,13.92]
[1745225272311,26.063,140.13,140.09,13.92]
[1745225273183,44.85481043,140.13,140.09,13.92]
[1745225278603,26.20516157,140.13,140.09,13.92]
[1745225278905,0.063,140.13,140.11,1.6482]
[1745225286110,0.063,140.13,140.09,13.92]
[1745225297438,18.79181043,140.1,140.04,6.2713]
[1745225297634,18.79181043,140.06,140.03,260.0545]
[1745225297842,18.79181043,140.06,140.03,13.95]
[1745225300446,44.79181043,140.04,140.03,13.95]
[1745225300614,44.79181043,140.04,140.03,0.03]
[1745225304119,26.14216157,140.04,140.03,0.03]
[1745225304728,0.14216157,140.04,140.03,0.03]
[1745225304935,80.8,140.05,140.03,0.03]
[1745225306243,18.79181043,140.04,140.03,0.03]
[1745225307542,0.14216157,140.04,140.03,0.03]
[1745225316935,18.79181043,140.04,140.03,0.03]
[1745225320063,0.14216157,140.04,140.03,0.03]
[1745225330054,18.79181043,140.04,140.03,0.03]
[1745225330361,44.79181043,140.04,140.03,0.03]
[1745225332764,18.79181043,140.04,140.03,0.03]
[1745225332962,0.14216157,140.04,140.03,0.03]
[1745225340268,18.79181043,140.04,140.03,0.03]
[1745225341958,0.14216157,140.04,140.03,0.03]
[1745225346174,80.8,140.05,140.03,0.03]
[1745225346761,0.14216157,140.06,140.03,0.03]
[1745225346977,18.64964886,140.09,140.04,1.6204]
[1745225347661,0.14216157,140.08,140.04,1.6204]
[1745225347974,18.64964886,140.09,140.04,1.6204]
[1745225348179,0.14216157,140.08,140.04,1.6204]
[1745225351581,0.14216157,140.09,140.04,1.6204]
[1745225354976,18.79181043,140.09,140.04,1.6204]
[1745225355157,44.79181043,140.09,140.04,1.6204]
[1745225357784,0.14216157,140.06,140.03,0.03]
[1745225363398,80.8,140.08,140.03,0.03]
[1745225363588,0.14216157,140.07,140.04,13.92]
[1745225375207,18.64964886,140.11,140.05,1.5585]
[1745225375380,80.8,140.12,140.06,6.3892]
[1745225375815,0.14216157,140.11,140.06,6.3892]
[1745225376112,80.8,140.12,140.06,6.3892]
[1745225376278,0.14216157,140.11,140.06,6.3892]
[1745225376482,80.8,140.12,140.06,6.3892]
[1745225377195,0.14216157,140.11,140.06,6.3892]
[1745225383916,80.8,140.12,140.06,6.3892]
[1745225384892,0.063,140.13,140.06,6.3892]
[1745225385411,0.063,140.13,140.07,1.6093]
[1745225404346,0.063,140.13,140.07,15.5093]
[1745225408844,0.06299992,140.13,140.08,6.514]
[1745225409025,0.06299992,140.13,140.09,1.5313]
[1745225409628,0.06299992,140.13,140.12,26.0]
[1745225409836,0.063,140.14,140.12,68.02165387]
[1745225410123,0.063,140.14,140.13,18.64964886]
[1745225410346,0.063,140.17,140.14,1.5313]
[1745225412625,0.063,140.17,140.16,26.0]
[1745225416659,0.063,140.17,140.14,1.5313]
[1745225425873,0.01692154,140.17,140.14,1.5313]
[1745225426165,0.01692144,140.17,140.14,1.5313]
[1745225426473,0.01692144,140.17,140.13,244.36]
[1745225429874,18.79181043,140.21,140.13,244.36]
[1745225432293,0.14216157,140.21,140.13,244.36]
[1745225432791,0.14216157,140.21,140.14,13.9]
[1745225439095,26.0,140.19,140.14,13.9]
[1745225439286,26.14216157,140.18,140.13,13.9]
[1745225439484,26.0,140.17,140.13,13.9]
[1745225450511,80.62381659,140.2,140.13,13.9]
[1745225450810,26.0,140.19,140.13,13.9]
[1745225451887,0.14216157,140.18,140.13,13.9]
[1745225454505,26.0,140.19,140.13,13.9]
[1745225460703,26.0,140.17,140.13,13.9]
[1745225468231,26.0,140.17,140.14,13.9]
[1745225472848,80.62381659,140.2,140.14,13.9]
[1745225473049,80.62381659,140.2,140.14,15.5642]
[1745225473640,0.14216157,140.19,140.14,15.5642]
[1745225473837,18.79181043,140.19,140.14,13.9]
[1745225474041,0.14216157,140.17,140.14,13.9]
[1745225478231,26.0,140.18,140.14,13.9]
[1745225479457,26.0,140.17,140.14,13.9]
[1745225479628,26.0,140.17,140.15,13.9]
[1745225482039,0.14216157,140.19,140.15,13.9]
[1745225482234,80.62381659,140.2,140.15,15.4066]
[1745225496370,0.14216157,140.19,140.15,15.4066]
[1745225497775,0.14216157,140.19,140.15,13.9]
[1745225499874,0.14216157,140.17,140.15,13.9]
[1745225502190,26.0,140.18,140.15,13.9]
[1745225503795,0.14216157,140.19,140.15,13.9]
[1745225504255,106.62381659,140.2,140.16,1.6436]
[1745225505264,80.62381659,140.2,140.16,1.6436]
[1745225508882,26.0,140.22,140.16,1.6436]
[1745225515397,26.0,140.22,140.16,7.9281]
[1745225517383,0.063,140.23,140.16,7.9281]
[1745225518392,26.0,140.22,140.16,7.9281]
[1745225520677,26.0,140.22,140.17,13.9]
[1745225523587,0.14216157,140.21,140.17,13.9]
[1745225532085,26.0,140.18,140.13,6.2845]
[1745225532290,0.14216157,140.16,140.14,13.88]
[1745225532490,18.79181043,140.16,140.14,13.88]
[1745225534319,26.0,140.17,140.14,13.88]
[1745225535392,91.68126995,140.22,140.14,13.88]
[1745225535704,0.14216157,140.2,140.14,13.88]
[1745225535905,26.14216157,140.2,140.14,13.88]
[1745225536212,0.14216157,140.2,140.14,13.88]
[1745225536595,26.14216157,140.2,140.14,13.88]
[1745225538612,80.62381659,140.22,140.14,13.88]
[1745225539093,80.62381659,140.22,140.15,1.5557]
[1745225539497,80.62381659,140.22,140.16,6.6431]
[1745225552601,26.0,140.21,140.16,6.6431]
[1745225552809,26.0,140.21,140.15,1.5557]
[1745225554733,80.62381659,140.22,140.15,1.5557]
[1745225561211,80.62381659,140.22,140.16,13.88]
[1745225563429,0.063,140.23,140.17,6.4075]
[1745225570835,0.063,140.23,140.18,13.88]
[1745225584834,0.063,140.23,140.19,1.6654]
[1745225589036,0.063,140.23,140.2,6.4675]
[1745225591545,0.063,140.23,140.21,13.88]
[1745225613785,0.063,140.23,140.21,15.458]
[1745225613954,0.063,140.23,140.21,22.0626]
[1745225615881,0.063,140.23,140.21,13.88]
[1745225616182,18.85481043,140.23,140.21,13.88]
[1745225616780,80.62381659,140.22,140.21,13.88]
[1745225617155,18.79181043,140.21,140.17,13.88]
[1745225619195,18.64964886,140.21,140.17,13.88]
[1745225634787,0.14216157,140.2,140.17,13.88]
[1745225636375,18.64964886,140.21,140.17,13.88]
[1745225642600,26.0,140.19,140.18,13.88]
[1745225652917,44.79181043,140.19,140.18,13.88]
[1745225653816,44.79181043,140.19,140.15,0.03]
[1745225654008,18.79181043,140.17,140.15,0.03]
[1745225661226,80.62381659,140.18,140.15,0.03]
[1745225665507,26.0,140.16,140.15,0.03]
[1745225665837,26.14216157,140.17,140.15,0.03]
[1745225669025,99.27346545,140.16,140.15,0.03]
[1745225673347,80.76597816,140.16,140.15,0.03]
[1745225674728,99.41562702,140.16,140.15,0.03]
[1745225692541,80.62381659,140.16,140.15,0.03]
[1745225693960,80.76597816,140.16,140.15,0.03]
[1745225694553,80.62381659,140.16,140.15,0.03]
[1745225694731,80.76597816,140.16,140.15,0.03]
[1745225700049,80.62381659,140.16,140.15,0.03]
[1745225718750,125.41562702,140.16,140.15,0.03]
[1745225719571,130.75103639,140.16,140.15,0.03]
[1745225724290,86.10138753,140.16,140.15,0.03]
[1745225726179,85.95922596,140.16,140.15,0.03]
[1745225734879,5.33540937,140.16,140.15,0.03]
[1745225739311,5.33540937,140.16,140.15,13.91]
[1745225746100,0.14216157,140.18,140.15,13.91]
[1745225746987,80.62381659,140.19,140.15,13.91]
[1745225748103,80.62381659,140.19,140.16,1.601]
[1745225748995,44.71264886,140.23,140.17,6.3455]
[1745225749295,18.71264886,140.23,140.17,6.3455]
[1745225749899,0.063,140.23,140.17,6.3455]
[1745225750106,0.20516157,140.23,140.17,6.3455]
[1745225751598,0.063,140.23,140.17,6.3455]
[1745225751807,0.063,140.24,140.21,7.8163]
[1745225751985,0.063,140.26,140.23,7.8163]
[1745225752618,0.063,140.28,140.26,7.8163]
[1745225752901,0.063,140.28,140.27,13.88]
[1745225753487,0.063,140.28,140.26,7.8163]
[1745225753689,18.71264886,140.28,140.27,13.88]
[1745225755606,0.063,140.28,140.27,13.88]
[1745225756998,99.33646545,140.28,140.27,13.88]
[1745225757689,125.33646545,140.28,140.27,13.88]
[1745225761506,125.47862702,140.28,140.27,13.88]
[1745225775817,125.33646545,140.28,140.27,13.88]
[1745225779021,99.33646545,140.28,140.27,13.88]
[1745225787243,99.47862702,140.28,140.27,13.88]
[1745225789439,99.33646545,140.28,140.27,13.88]
[1745225789739,99.47862702,140.28,140.27,13.88]
[1745225791928,99.33646545,140.28,140.27,13.88]
[1745225799326,99.47862702,140.28,140.27,13.88]
[1745225801153,99.33646545,140.28,140.27,13.88]
[1745225801447,99.47862702,140.28,140.27,13.88]
[1745225804053,99.33646545,140.28,140.27,13.88]
[1745225815156,99.47862702,140.28,140.27,13.88]
[1745225816655,99.33646545,140.28,140.27,13.88]
[1745225816836,99.47862702,140.28,140.27,13.88]
[1745225821266,0.14216157,140.27,140.22,7.8163]
[1745225821468,0.14216157,140.27,140.25,13.88]
[1745225821764,44.79181043,140.26,140.25,13.88]
[1745225821944,44.64964886,140.26,140.25,13.88]
[1745225822148,44.79181043,140.26,140.25,13.88]
[1745225831462,125.41562702,140.26,140.25,13.88]
[1745225835043,125.27346545,140.26,140.25,13.88]
[1745225835652,80.62381659,140.26,140.25,13.88]
[1745225835851,18.71264886,140.28,140.25,13.88]
[1745225836052,0.063,140.28,140.25,13.88]
[1745225836251,0.063,140.28,140.26,1.5037]
[1745225836561,0.063,140.28,140.27,6.4293]
[1745225843979,0.063,140.28,140.26,1.5037]
[1745225846999,0.063,140.28,140.27,13.88]
[1745225862503,0.063,140.28,140.27,19.954]
[1745225863687,0.063,140.29,140.28,1.5052]
[1745225863888,0.063,140.32,140.28,1.5052]
[1745225865004,0.063,140.32,140.28,27.5052]
[1745225865196,0.063,140.32,140.29,6.074]
[1745225867700,0.063,140.32,140.31,26.0]
[1745225870313,0.03,140.33,140.32,32.4449]
[1745225870496,0.03,140.33,140.32,46.3049]
[1745225872105,0.03,140.33,140.32,20.3049]
[1745225881709,0.03,140.34,140.32,20.3049]
[1745225884410,0.03,140.34,140.33,244.04]
[1745225894018,0.03,140.34,140.32,13.86]
[1745225894220,0.03,140.34,140.33,6.1601]
[1745225897536,0.03,140.34,140.33,6.30226157]
[1745225902035,0.03,140.34,140.33,7.89856157]
[1745225903530,0.03,140.34,140.33,33.89856157]
[1745225907943,0.03,140.34,140.33,33.7564]
[1745225908240,0.03,140.34,140.32,13.86]
[1745225917948,0.03,140.34,140.33,244.0]
[1745225923648,0.03,140.34,140.33,270.0]
[1745225923850,0.03,140.34,140.33,244.14216157]
[1745225924054,0.03,140.34,140.33,245.14216157]
[1745225924351,0.03,140.34,140.33,244.14216157]
[1745225924541,0.03,140.34,140.33,262.79181043]
[1745225926256,0.03,140.34,140.33,244.0]
[1745225926454,0.03,140.34,140.33,270.0]
[1745225947669,0.03,140.34,140.33,257.86]
[1745225949067,0.03,140.34,140.33,276.65181043]
[1745225951154,0.03,140.34,140.33,258.00216157]
[1745225953876,0.063,140.37,140.35,26.0]
[1745225957274,0.063,140.37,140.35,39.86]
[1745225958280,0.063,140.37,140.35,13.86]
[1745225988401,18.71264886,140.37,140.35,13.86]
[1745225989106,18.71264886,140.37,140.31,270.0]
[1745225989321,18.71264886,140.37,140.35,13.86]
[1745225990319,45.15344886,140.37,140.35,13.86]
[1745225996285,0.20516157,140.36,140.35,13.86]
[1745226002913,18.64964886,140.33,140.31,13.86]
[1745226003092,99.41562702,140.32,140.31,13.86]
[1745226005115,0.14216157,140.3,140.28,244.083]
[1745226005321,106.76597816,140.29,140.28,257.943]
[1745226006318,125.41562702,140.29,140.28,257.943]
[1745226006528,125.41562702,140.29,140.28,13.923]
[1745226007413,125.41562702,140.29,140.28,0.063]
[1745226007612,44.79181043,140.29,140.28,0.063]
[1745226012821,44.64964886,140.29,140.28,0.063]
[1745226013318,18.79181043,140.29,140.28,0.063]
[1745226015923,18.64964886,140.29,140.28,0.063]
[1745226016122,0.14216157,140.33,140.28,0.063]
[1745226016308,18.64964886,140.3,140.28,0.063]
[1745226017127,80.8,140.32,140.28,0.063]
[1745226017315,80.8,140.35,140.29,8.0734]
[1745226017516,80.8,140.35,140.3,13.86]
[1745226017719,18.64964886,140.34,140.3,13.86]
[1745226018402,80.8,140.35,140.3,13.86]
[1745226018603,0.063,140.36,140.3,13.86]
[1745226020742,0.063,140.36,140.3,258.0]
[1745226020930,0.063,140.36,140.31,1.59]
[1745226022918,0.063,140.36,140.31,27.59]
[1745226023233,0.063,140.36,140.34,6.2641]
[1745226023416,0.063,140.36,140.35,13.86]
[1745226026537,0.063,140.36,140.35,15.45]
[1745226027836,0.063,140.36,140.35,1.59]
[1745226028140,0.063,140.36,140.35,13.86]
[1745226035840,0.063,140.36,140.35,20.1241]
[1745226036641,0.063,140.36,140.35,21.6838]
[1745226038447,0.063,140.36,140.35,265.7038]
[1745226041942,0.063,140.37,140.35,284.49561043]
[1745226042128,0.667478,140.38,140.37,26.0]
[1745226046443,0.667478,140.38,140.37,26.14216157]
[1745226049029,0.667478,140.38,140.37,26.0]
[1745226055662,0.667478,140.38,140.37,26.14216157]
[1745226056031,0.03,140.4,140.37,52.56621043]
[1745226056236,0.5338,140.49,140.4,26.0]
[1745226056461,18.67964886,140.49,140.41,13.96]
[1745226057647,18.67964886,140.49,140.41,39.96]
[1745226058055,0.14216157,140.48,140.41,13.96]
[1745226058240,18.64964886,140.46,140.41,13.96]
[1745226061455,0.14216157,140.45,140.41,13.96]
[1745226061655,18.64964886,140.46,140.41,13.96]
[1745226063642,18.67964886,140.48,140.41,13.96]
[1745226063865,0.03,140.48,140.41,40.10216157]
[1745226065944,0.03,140.48,140.42,243.9]
[1745226067266,0.03,140.48,140.45,26.0]
[1745226067459,0.03,140.48,140.46,13.96]
[1745226068461,0.03,140.53,140.5,26.0]
[1745226068763,80.8,140.62,140.51,13.96]
[1745226069142,18.64964886,140.61,140.51,13.96]
[1745226069348,80.8,140.62,140.54,26.0]
[1745226069960,80.8,140.62,140.56,26.0]
[1745226070243,80.8,140.65,140.56,39.96]
[1745226070450,18.64964886,140.64,140.56,39.96]
[1745226070660,80.8,140.65,140.56,39.96]
[1745226071067,80.8,140.65,140.56,13.96]
[1745226071267,18.79181043,140.64,140.56,13.96]
[1745226075254,0.03,140.63,140.56,13.96]
[1745226078674,1.201,140.59,140.56,14.2]
[1745226078878,125.59181043,140.58,140.56,14.2]
[1745226079172,18.79181043,140.55,140.53,243.88]
[1745226080883,82.001,140.59,140.53,243.88]
[1745226081059,18.64964886,140.6,140.53,243.88]
[1745226082153,18.64964886,140.61,140.53,243.88]
[1745226084481,6.3778,140.63,140.56,26.0]
[1745226084986,18.64964886,140.62,140.56,26.0]
[1745226085688,18.64964886,140.62,140.54,26.0]
[1745226087371,0.14216157,140.59,140.55,14.2]
[1745226087766,18.64964886,140.6,140.55,14.2]
[1745226089166,1.231,140.63,140.55,14.2]
[1745226089374,18.64964886,140.62,140.55,14.2]
[1745226091387,1.231,140.63,140.55,14.2]
[1745226091770,0.14216157,140.61,140.55,14.2]
[1745226092190,18.64964886,140.6,140.55,14.2]
[1745226094088,80.8,140.61,140.55,14.2]
[1745226097996,18.64964886,140.6,140.55,14.2]
[1745226105501,0.14216157,140.59,140.55,14.2]
[1745226107000,18.64964886,140.6,140.55,14.2]
[1745226107204,0.14216157,140.59,140.55,14.2]
[1745226116410,18.64964886,140.6,140.55,14.2]
[1745226127914,0.14216157,140.59,140.55,14.2]
[1745226130210,18.64964886,140.6,140.55,14.2]
[1745226132310,0.14216157,140.59,140.55,14.2]
[1745226133917,18.64964886,140.6,140.55,14.2]
[1745226136327,18.64964886,140.6,140.56,14.32]
[1745226139023,80.8,140.61,140.56,14.32]
[1745226144813,0.03,140.63,140.56,15.9506]
[1745226145314,0.03,140.63,140.59,26.0]
[1745226145714,0.03,140.63,140.57,26.0]
[1745226146107,0.03,140.63,140.61,33.851]
[1745226146314,0.03,140.63,140.62,14.32]
[1745226155207,0.03,140.63,140.62,14.3]
[1745226164440,0.03,140.63,140.62,40.3]
[1745226165726,0.03,140.63,140.62,41.8701]
[1745226166146,0.03,140.63,140.62,42.01226157]
[1745226167235,0.03,140.63,140.62,41.8701]
[1745226169221,0.03,140.63,140.62,285.3701]
[1745226172028,0.03,140.63,140.62,259.3701]
[1745226172845,0.03,140.63,140.62,285.3701]
[1745226173045,0.03,140.63,140.62,283.8]
[1745226173225,0.03,140.63,140.62,257.8]
[1745226193252,0.03,140.63,140.62,283.8]
[1745226193781,0.03,140.63,140.62,257.8]
[1745226203177,0.03,140.63,140.62,257.72]
[1745226207078,0.03,140.63,140.62,243.5]
[1745226207374,0.03,140.63,140.62,257.72]
[1745226218992,0.03,140.63,140.62,14.22]
[1745226227590,0.14216157,140.62,140.55,269.54]
[1745226227797,0.14216157,140.62,140.56,14.24]
[1745226229506,18.67964886,140.63,140.56,14.24]
[1745226229698,0.03,140.63,140.56,14.24]
[1745226234379,18.67964886,140.63,140.56,14.24]
[1745226235006,0.14216157,140.62,140.56,14.24]
[1745226245099,18.67964886,140.63,140.56,14.24]
[1745226249811,0.03,140.63,140.56,14.24]
[1745226250424,0.03,140.63,140.57,26.0]
[1745226256533,91.85745336,140.76,140.61,33.7232]
[1745226256717,11.05745336,140.75,140.68,6.0884]
[1745226256909,11.05745336,140.75,140.72,26.0]
[1745226257631,80.8,140.8,140.72,26.0]
[1745226258116,18.64964886,140.79,140.72,26.0]
[1745226258317,18.64964886,140.79,140.72,29.5131909]
[1745226259824,18.64964886,140.79,140.72,26.0]
[1745226265643,17.64964886,140.79,140.72,26.0]
[1745226269337,17.64964886,140.79,140.73,14.18]
[1745226270029,17.64964886,140.79,140.73,15.7944]
[1745226274537,17.64964886,140.79,140.73,14.18]
[1745226280142,106.8,140.83,140.74,6.3831]
[1745226280321,18.64964886,140.82,140.74,6.3831]
[1745226281248,80.8,140.83,140.75,1.5813]
[1745226282126,80.8,140.88,140.77,26.0]
[1745226282326,99.44964886,140.87,140.78,14.18]
[1745226282745,0.14216157,140.86,140.78,14.18]
[1745226282949,99.44964886,140.87,140.78,14.18]
[1745226283355,0.14216157,140.86,140.78,14.18]
[1745226283650,26.14216157,140.86,140.78,14.18]
[1745226284749,0.14216157,140.84,140.78,14.18]
[1745226285249,18.64964886,140.85,140.78,14.18]
[1745226285451,0.14216157,140.84,140.78,14.18]
[1745226286940,18.64964886,140.85,140.78,14.18]
[1745226287125,0.14216157,140.85,140.78,40.18]
[1745226288347,18.64964886,140.86,140.78,40.18]
[1745226289647,18.64964886,140.86,140.79,6.3831]
[1745226289947,18.64964886,140.86,140.8,1.5813]
[1745226290130,80.8,140.87,140.81,26.0]
[1745226290323,18.64964886,140.88,140.81,26.0]
[1745226290519,18.64964886,140.88,140.83,26.0]
[1745226290720,18.64964886,140.88,140.84,14.08]
[1745226292937,18.64964886,140.89,140.84,14.08]
[1745226293257,0.14216157,140.88,140.84,14.08]
[1745226294949,0.14216157,140.85,140.84,14.08]
[1745226297132,0.14216157,140.86,140.8,243.26]
[1745226297331,18.79181043,140.83,140.8,243.26]
[1745226297532,18.79181043,140.83,140.81,14.08]
[1745226298656,18.79181043,140.83,140.8,243.26]
[1745226298960,18.79181043,140.83,140.81,14.08]
[1745226299352,18.79181043,140.83,140.8,243.26]
[1745226299557,18.79181043,140.83,140.81,14.08]
[1745226302565,18.64964886,140.83,140.81,14.08]
[1745226303162,80.8,140.84,140.81,14.08]
[1745226305962,18.64964886,140.83,140.81,14.08]
[1745226306958,0.14216157,140.82,140.81,14.08]
[1745226307166,18.64964886,140.83,140.81,14.08]
[1745226307342,0.14216157,140.82,140.81,14.08]
[1745226308047,0.14216157,140.82,140.78,14.08]
[1745226308240,18.79181043,140.8,140.78,14.08]